bitfinex/quotes_SOLUSD_20240826
["timestamp","ask_amount","ask_price","bid_price","bid_amount"]
[1724661154962,6.2196,160.79,160.74,15.4877]
[1724661155671,6.2199,160.78,160.74,15.4877]
[1724661156054,6.2201,160.77,160.74,15.4877]
[1724661156455,1.55527065,160.76,160.72,6.4096]
[1724661157065,13.46387563,160.76,160.7,16.3741]
[1724661157355,6.2213,160.74,160.68,6.3921]
[1724661157553,6.2218,160.73,160.68,6.3921]
[1724661157782,11.90860498,160.74,160.68,6.3921]
[1724661158479,1.5557951,160.73,160.68,6.3921]
[1724661159466,6.222,160.72,160.68,6.3921]
[1724661160385,11.90860498,160.74,160.68,6.3921]
[1724661160585,390.3,160.75,160.68,6.3921]
[1724661160894,1.55565749,160.74,160.68,6.3921]
[1724661161179,1.55571651,160.73,160.68,6.3921]
[1724661162189,7.77761651,160.73,160.68,6.3921]
[1724661163076,6.222,160.72,160.68,6.3921]
[1724661171369,6.2224,160.71,160.68,6.3921]
[1724661172474,6.2225,160.71,160.68,6.3921]
[1724661172675,1.55581962,160.7,160.66,16.3741]
[1724661173086,6.2225,160.71,160.66,16.3741]
[1724661173290,1.55586632,160.7,160.66,16.3741]
[1724661173490,6.2225,160.71,160.66,16.3741]
[1724661173702,1.55586619,160.7,160.66,16.3741]
[1724661174589,6.2234,160.69,160.66,16.3741]
[1724661174788,1.55594352,160.7,160.66,16.3741]
[1724661174993,18.13120498,160.71,160.66,16.3741]
[1724661175494,6.2226,160.71,160.66,16.3741]
[1724661175805,7.7785139,160.71,160.66,16.3741]
[1724661178091,19.68711888,160.71,160.66,16.3741]
[1724661178390,1.55596701,160.7,160.64,6.565]
[1724661178588,6.2242,160.67,160.62,15.4576]
[1724661178905,1.5563901,160.66,160.62,15.4576]
[1724661179607,18.13280498,160.67,160.62,15.4576]
[1724661180288,18.13280498,160.67,160.63,20.0]
[1724661181215,6.2242,160.67,160.63,20.0]
[1724661181796,7.78057736,160.67,160.63,20.0]
[1724661183694,6.2235,160.68,160.63,20.0]
[1724661184314,6.223,160.7,160.64,0.91790956]
[1724661184516,7.77910522,160.7,160.63,20.0]
[1724661184717,398.07910522,160.7,160.63,20.0]
[1724661184913,7.77930631,160.69,160.63,20.0]
[1724661185712,6.2237,160.68,160.63,20.0]
[1724661186022,1.55630009,160.67,160.63,20.0]
[1724661187408,7.78020009,160.67,160.62,15.4576]
[1724661187612,19.68880507,160.67,160.62,15.4576]
[1724661187825,1.55638769,160.66,160.62,15.4576]
[1724661188404,19.68889122,160.67,160.62,15.4576]
[1724661188603,18.13250498,160.67,160.62,15.4576]
[1724661191832,19.68889005,160.67,160.62,15.4576]
[1724661192612,18.13250498,160.67,160.62,15.4576]
[1724661197624,18.13250498,160.67,160.61,0.91853701]
[1724661197825,18.13250498,160.67,160.61,20.91853701]
[1724661198223,1.55638945,160.66,160.58,15.0346]
[1724661198422,6.2253,160.64,160.58,15.0346]
[1724661198749,1.55638945,160.66,160.51,6.13853525]
[1724661198750,6.2267,160.6,160.54,15.5785]
[1724661199041,1.55697968,160.59,160.54,15.5785]
[1724661199628,1.55698022,160.6,160.54,15.5785]
[1724661200133,1.55698022,160.6,160.55,20.0]
[1724661200320,396.5263,160.61,160.55,20.0]
[1724661201242,390.3,160.61,160.56,0.91996402]
[1724661202715,6.2259,160.62,160.56,0.91996402]
[1724661202916,7.78304972,160.61,160.55,20.0]
[1724661203128,1.55698298,160.6,160.55,20.0]
[1724661206141,7.78368298,160.6,160.55,20.0]
[1724661206645,6.227,160.59,160.55,20.0]
[1724661207726,1.55705204,160.58,160.55,20.0]
[1724661208750,7.78494966,160.57,160.52,6.3397]
[1724661208944,1.55704966,160.57,160.53,20.0]
[1724661209447,7.78494966,160.57,160.53,20.0]
[1724661209754,6.2283,160.56,160.49,16.0968]
[1724661210549,18.13690498,160.56,160.49,16.0968]
[1724661211047,1.55751498,160.55,160.49,16.0968]
[1724661211253,1.55751498,160.55,160.5,20.0]
[1724661211828,452.58472104,160.62,160.51,0.92103206]
[1724661211829,433.88472104,160.62,160.51,0.92103206]
[1724661212052,6.2274,160.58,160.51,0.92103206]
[1724661212358,390.3,160.62,160.56,11.90860498]
[1724661212850,390.3,160.62,160.57,0.91953096]
[1724661214257,390.3,160.62,160.56,12.82810736]
[1724661214758,396.5259,160.62,160.56,0.91950238]
[1724661215146,6.2266,160.6,160.54,6.0235]
[1724661215337,1.55708655,160.59,160.55,20.0]
[1724661216360,6.2266,160.6,160.55,20.0]
[1724661216860,18.13490498,160.61,160.55,20.0]
[1724661218664,1.55699366,160.6,160.55,20.0]
[1724661219664,18.13490498,160.61,160.55,20.0]
[1724661220548,390.3,160.6,160.55,20.0]
[1724661220759,1.55699327,160.59,160.55,20.0]
[1724661220955,11.90860498,160.57,160.51,16.2342]
[1724661221139,1.55735311,160.56,160.51,16.2342]
[1724661222246,1.55735311,160.56,160.52,20.0]
[1724661223570,11.90860498,160.55,160.47,15.4975]
[1724661223868,1.55757104,160.54,160.48,1.55919146]
[1724661224043,1.55757104,160.54,160.49,1.55919146]
[1724661224242,390.3,160.55,160.49,1.55919146]
[1724661225650,390.3,160.55,160.49,21.55919146]
[1724661225839,390.3,160.55,160.49,31.90860498]
[1724661226047,390.3,160.55,160.5,0.92080295]
[1724661228168,390.3,160.55,160.49,31.90860498]
[1724661229585,18.13650498,160.57,160.49,31.90860498]
[1724661229787,19.69387012,160.57,160.49,31.90860498]
[1724661230157,1.55736514,160.57,160.49,31.90860498]
[1724661230382,396.5274,160.58,160.5,0.92080987]
[1724661230574,6.2278,160.57,160.5,0.92080987]
[1724661230779,6.2278,160.57,160.5,2.47986833]
[1724661230980,18.13640498,160.57,160.5,0.92080987]
[1724661231492,18.13640498,160.57,160.5,2.47987887]
[1724661232285,6.2282,160.56,160.5,2.47987887]
[1724661232487,7.78560186,160.56,160.49,20.0]
[1724661232860,6.2282,160.56,160.49,20.92114684]
[1724661233587,6.2282,160.56,160.49,20.0]
[1724661234192,6.2282,160.56,160.5,1.55907224]
[1724661235395,390.3,160.55,160.5,1.55907224]
[1724661235595,390.3,160.55,160.5,1.55908021]
[1724661236466,390.3,160.55,160.51,0.92090956]
[1724661237686,390.3,160.55,160.5,0.92080611]
[1724661238378,390.3,160.55,160.5,2.16805343]
[1724661239497,390.3,160.55,160.5,14.07665841]
[1724661239799,390.3,160.55,160.51,21.24716426]
[1724661239980,390.3,160.55,160.51,20.0]
[1724661240178,390.3,160.55,160.52,20.57817859]
[1724661240391,390.3,160.55,160.53,20.0]
[1724661240704,390.3,160.55,160.54,11.90860498]
[1724661240868,6.2256,160.63,160.54,31.90860498]
[1724661241072,396.5256,160.63,160.55,20.91940887]
[1724661242200,11.90860498,160.6,160.55,20.0]
[1724661242501,390.3,160.63,160.54,15.6566094]
[1724661242675,6.2263,160.61,160.54,15.6566094]
[1724661242880,6.2263,160.61,160.54,14.73649298]
[1724661243086,6.2267,160.6,160.54,14.73649298]
[1724661243304,13.46562012,160.6,160.54,14.73649298]
[1724661243485,13.46562012,160.6,160.53,16.5871]
[1724661243687,11.90860498,160.58,160.53,16.5871]
[1724661243974,1.55727847,160.57,160.52,6.5021]
[1724661244200,391.85727847,160.57,160.52,6.5021]
[1724661246383,391.85727847,160.57,160.49,15.204]
[1724661246610,18.13680498,160.56,160.5,20.0]
[1724661246803,1.55743999,160.55,160.5,20.0]
[1724661247210,1.55743158,160.54,160.49,15.204]
[1724661247402,13.46603656,160.54,160.49,15.204]
[1724661249312,19.69503656,160.54,160.49,15.204]
[1724661249494,19.69503656,160.54,160.48,6.141]
[1724661249694,6.2294,160.53,160.48,6.141]
[1724661249894,6.2294,160.53,160.45,15.1489]
[1724661250095,6.2294,160.53,160.46,20.0]
[1724661251218,19.69624027,160.52,160.46,20.0]
[1724661251418,19.69624027,160.52,160.46,20.92202183]
[1724661251419,18.13840498,160.52,160.46,20.92202183]
[1724661251729,11.90860498,160.54,160.47,0.92202155]
[1724661252308,11.90860498,160.54,160.46,20.0]
[1724661252736,1.55778105,160.53,160.46,20.0]
[1724661252922,7.78738105,160.53,160.46,20.0]
[1724661253111,6.2296,160.53,160.46,20.0]
[1724661253309,6.2296,160.53,160.46,20.92197123]
[1724661256531,6.2298,160.52,160.46,20.92197123]
[1724661256730,18.13840498,160.52,160.46,20.92197123]
[1724661261742,18.13840498,160.52,160.46,20.0]
[1724661261926,18.13840498,160.52,160.46,20.92199236]
[1724661262742,390.3,160.57,160.46,20.92199236]
[1724661262743,6.2294,160.53,160.46,20.92199236]
[1724661263639,6.2294,160.53,160.46,20.0]
[1724661264217,6.2294,160.53,160.47,0.92159452]
[1724661265343,6.2294,160.53,160.46,20.0]
[1724661265526,7.7870708,160.53,160.46,20.0]
[1724661265729,18.13840498,160.52,160.46,20.0]
[1724661266645,1.55778573,160.51,160.46,20.0]
[1724661268726,11.90860498,160.5,160.45,15.1489]
[1724661268927,1.55797268,160.49,160.45,15.1489]
[1724661269936,7.78887268,160.49,160.45,15.1489]
[1724661270119,1.55806006,160.48,160.45,15.1489]
[1724661271119,1.55806006,160.48,160.35,26.49309437]
[1724661271120,11.90860498,160.46,160.35,28.45319437]
[1724661271336,7.79086352,160.45,160.36,12.72885678]
[1724661271649,1.55836352,160.45,160.36,12.72885678]
[1724661272251,19.69905503,160.46,160.36,12.72885678]
[1724661273067,18.14020498,160.47,160.38,11.90860498]
[1724661273373,30.8061,160.51,160.38,11.90860498]
[1724661273374,11.90860498,160.48,160.39,0.92283882]
[1724661273546,11.90860498,160.48,160.4,12.83134617]
[1724661273744,11.90860498,160.5,160.41,15.8744]
[1724661273945,11.90860498,160.5,160.42,0.92260346]
[1724661274168,6.339,160.53,160.43,0.92259786]
[1724661274341,11.90860498,160.52,160.43,0.92259786]
[1724661274677,6.2304,160.51,160.43,0.92259786]
[1724661279371,18.13900498,160.51,160.43,0.92259786]
[1724661280186,6.2305,160.5,160.43,0.92259786]
[1724661281251,7.788445,160.5,160.42,20.0]
[1724661281986,18.13950498,160.49,160.42,20.0]
[1724661282293,1.55814991,160.48,160.42,20.0]
[1724661282450,18.13950498,160.49,160.42,20.0]
[1724661282650,1.55813031,160.48,160.42,20.0]
[1724661284376,11.90860498,160.47,160.42,20.0]
[1724661284681,18.14030498,160.47,160.42,20.0]
[1724661285054,18.14030498,160.47,160.41,22.4273]
[1724661285274,1.55834678,160.46,160.41,22.4273]
[1724661286181,7.79044678,160.46,160.41,22.4273]
[1724661286601,1.55840511,160.45,160.41,22.4273]
[1724661288201,1.55840511,160.45,160.37,15.9617]
[1724661288383,19.69951009,160.45,160.38,20.0]
[1724661288783,1.55848139,160.44,160.38,20.0]
[1724661290496,6.2325,160.45,160.38,32.83240338]
[1724661291304,19.69890927,160.47,160.38,31.90860498]
[1724661291698,6.2321,160.46,160.38,31.90860498]
[1724661292289,6.2321,160.46,160.39,0.92343039]
[1724661292490,6.2321,160.46,160.38,31.90860498]
[1724661292911,1.55837548,160.45,160.38,31.90860498]
[1724661296516,1.55837709,160.45,160.38,20.0]
[1724661297384,18.14070498,160.46,160.39,0.92352048]
[1724661300815,390.3,160.45,160.39,0.92352048]
[1724661301833,13.46706693,160.44,160.37,22.1651]
[1724661302208,6.2343,160.41,160.36,0.8202518]
[1724661302603,1.55897588,160.4,160.36,0.8202518]
[1724661302836,390.3,160.43,160.36,0.8202518]
[1724661303016,390.3,160.43,160.36,1.74411032]
[1724661303207,390.3,160.43,160.36,13.6527153]
[1724661303611,390.3,160.43,160.4,6.1052]
[1724661303806,390.3,160.48,160.4,18.93711051]
[1724661304029,396.5313,160.48,160.4,18.93711051]
[1724661304231,390.3,160.48,160.4,18.93711051]
[1724661304421,390.3,160.48,160.41,20.0]
[1724661304728,390.3,160.48,160.42,0.92274238]
[1724661306235,396.5314,160.48,160.41,20.0]
[1724661306413,1.55819014,160.47,160.41,20.0]
[1724661306736,7.78989014,160.47,160.41,20.0]
[1724661307722,7.78989014,160.47,160.4,6.1052]
[1724661307723,19.69849512,160.47,160.4,6.1052]
[1724661307923,6.232,160.46,160.4,6.1052]
[1724661308939,6.2331,160.44,160.4,6.1052]
[1724661309145,1.55855976,160.43,160.4,6.1052]
[1724661310320,19.70036474,160.43,160.39,15.6497]
[1724661310651,47.63441992,160.48,160.36,7.3625518]
[1724661310652,11.90860498,160.41,160.36,7.3625518]
[1724661310813,7.79338894,160.4,160.36,7.3625518]
[1724661311152,1.55898886,160.39,160.36,7.3625518]
[1724661311342,13.46759384,160.39,160.36,0.8202518]
[1724661312046,390.3,160.4,160.36,1.7447802]
[1724661312235,390.3,160.4,160.36,20.8202518]
[1724661312631,390.3,160.4,160.36,0.8202518]
[1724661312843,1.55898068,160.39,160.36,0.8202518]
[1724661313738,390.3,160.4,160.36,0.8202518]
[1724661316156,390.3,160.4,160.36,1.74446049]
[1724661318219,390.3,160.4,160.36,0.8202518]
[1724661319754,390.3,160.4,160.37,19.7597689]
[1724661319932,390.3,160.4,160.38,20.92381309]
[1724661320835,390.3,160.4,160.38,20.0]
[1724661321241,390.3,160.4,160.37,6.6029]
[1724661321633,390.3,160.42,160.37,6.6029]
[1724661321843,391.8587697,160.42,160.37,6.6029]
[1724661327674,390.3,160.42,160.37,6.6029]
[1724661329972,390.3,160.42,160.36,0.8202518]
[1724661329973,1.55875898,160.41,160.36,0.8202518]
[1724661330156,6.2352,160.38,160.36,0.8202518]
[1724661330356,1.55917771,160.37,160.36,0.8202518]
[1724661332275,6.2355,160.37,160.36,0.8202518]
[1724661332646,7.79487329,160.37,160.36,0.8202518]
[1724661333760,6.2355,160.37,160.36,0.8202518]
[1724661335256,37.68784921,160.37,160.36,0.8202518]
[1724661336781,82.68784921,160.37,160.36,0.8202518]
[1724661337686,81.12846957,160.37,160.36,0.8202518]
[1724661338274,101.12846957,160.37,160.36,0.8202518]
[1724661338782,102.6882024,160.37,160.36,0.8202518]
[1724661340379,101.12846957,160.37,160.36,0.8202518]
[1724661340577,121.38819381,160.37,160.36,0.8202518]
[1724661341156,127.89123258,160.37,160.36,0.8202518]
[1724661342180,35.3499,160.36,160.22,21.3668]
[1724661342493,6.239,160.28,160.22,21.3668]
[1724661342690,6.239,160.28,160.13,26.50453455]
[1724661342691,441.75320235,160.27,160.15,21.4952]
[1724661342982,390.3,160.27,160.18,29.89296957]
[1724661343154,390.3,160.27,160.21,15.4368]
[1724661343355,390.3,160.27,160.22,6.0584]
[1724661344277,390.3,160.27,160.23,20.0]
[1724661347793,1.56017478,160.26,160.22,6.0584]
[1724661348367,391.86017478,160.26,160.22,6.0584]
[1724661348567,390.3,160.26,160.22,6.0584]
[1724661352400,390.3,160.26,160.22,6.9858959]
[1724661352559,390.3,160.26,160.23,20.0]
[1724661354386,396.5379,160.31,160.23,20.0]
[1724661354693,396.5379,160.31,160.23,20.92716896]
[1724661354892,6.2383,160.3,160.23,20.92716896]
[1724661355063,6.2383,160.3,160.23,20.0]
[1724661356498,396.5379,160.31,160.23,20.0]
[1724661357177,396.5379,160.31,160.23,20.92714134]
[1724661357492,396.5379,160.31,160.23,20.0]
[1724661357789,396.5379,160.31,160.23,20.92714046]
[1724661357981,396.5379,160.31,160.24,0.92706651]
[1724661360297,390.3,160.3,160.24,0.92706651]
[1724661361300,390.3,160.3,160.23,20.0]
[1724661361983,1.55992142,160.29,160.23,20.0]
[1724661363294,396.5383,160.3,160.23,20.0]
[1724661363591,396.5383,160.3,160.24,0.92708775]
[1724661363769,390.3,160.3,160.24,0.92708775]
[1724661364170,396.5383,160.3,160.24,0.92708775]
[1724661365106,390.3,160.3,160.25,0.92716375]
[1724661365270,390.3,160.3,160.26,11.97374279]
[1724661365589,390.3,160.33,160.27,16.3064]
[1724661365776,390.3,160.33,160.28,20.0]
[1724661368801,390.3,160.33,160.29,0.9262383]
[1724661369104,390.3,160.34,160.29,0.9262383]
[1724661372186,390.3,160.36,160.29,0.9262383]
[1724661372976,390.3,160.36,160.31,46.55927533]
[1724661373179,390.3,160.36,160.33,6.4123]
[1724661374205,390.3,160.36,160.33,7.97309425]
[1724661374502,390.3,160.36,160.33,6.4123]
[1724661374706,390.3,160.36,160.34,20.0]
[1724661375585,390.3,160.36,160.35,0.92455709]
[1724661375789,390.3,160.36,160.35,47.48517833]
[1724661375980,390.3,160.36,160.35,66.56062124]
[1724661376178,390.3,160.36,160.35,65.0]
[1724661376603,390.3,160.36,160.35,66.56061798]
[1724661377198,390.3,160.36,160.35,65.0]
[1724661378208,390.3,160.44,160.35,65.0]
[1724661378509,391.85862944,160.43,160.36,20.0]
[1724661378714,1.55876814,160.42,160.36,20.0]
[1724661379207,1.55876814,160.42,160.33,36.32997533]
[1724661379208,1.55876814,160.42,160.34,20.0]
[1724661379707,7.79236814,160.42,160.34,20.0]
[1724661382090,396.5332,160.43,160.35,0.92442527]
[1724661384412,1.55911253,160.37,160.33,6.4123]
[1724661384708,390.3,160.36,160.33,6.4123]
[1724661384894,390.3,160.36,160.31,16.6416]
[1724661385129,390.3,160.36,160.32,20.0]
[1724661385605,1.55925465,160.35,160.32,20.0]
[1724661385805,1.55925465,160.35,160.31,16.6416]
[1724661386315,6.2367,160.34,160.29,6.4669]
[1724661386519,1.55955922,160.33,160.29,6.4669]
[1724661386681,1.55957434,160.32,160.29,6.4669]
[1724661386881,7.79707434,160.32,160.27,15.523]
[1724661387712,6.2375,160.32,160.27,15.523]
[1724661388020,1.55968359,160.31,160.27,15.523]
[1724661388384,6.2371,160.33,160.27,15.523]
[1724661388584,6.2366,160.35,160.27,15.523]
[1724661388985,7.79605973,160.35,160.27,15.523]
[1724661389592,6.2366,160.35,160.27,15.523]
[1724661389994,7.79609375,160.35,160.27,15.523]
[1724661391416,6.2367,160.34,160.27,15.523]
[1724661392690,380.52099283,160.36,160.27,15.523]
[1724661393209,1.25729531,160.35,160.27,15.523]
[1724661393452,31.17497064,160.35,160.27,15.523]
[1724661393932,6.2371,160.33,160.27,15.523]
[1724661394226,7.49479531,160.32,160.27,15.523]
[1724661394410,7.49479531,160.32,160.25,6.6162]
[1724661394723,372.62948814,160.32,160.26,20.0]
[1724661397649,372.62948814,160.32,160.23,16.3845]
[1724661397650,6.239,160.28,160.23,16.3845]
[1724661397915,1.25729531,160.27,160.23,16.3845]
[1724661399211,7.49599531,160.29,160.23,16.3845]
[1724661399412,7.49599531,160.29,160.21,6.2214]
[1724661399722,37.41367064,160.29,160.22,20.0]
[1724661401705,6.239,160.28,160.22,20.0]
[1724661401906,6.239,160.28,160.2,0.8202518]
[1724661401907,31.17497064,160.27,160.2,0.8202518]
[1724661402138,6.2402,160.25,160.2,0.8202518]
[1724661402311,1.25729531,160.24,160.2,0.8202518]
[1724661402840,7.49799531,160.24,160.2,0.8202518]
[1724661403409,371.37489283,160.26,160.2,0.8202518]
[1724661403613,1.25729531,160.25,160.2,0.8202518]
[1724661404017,7.49749531,160.25,160.2,0.8202518]
[1724661404405,6.2407,160.24,160.2,0.8202518]
[1724661404612,1.25729531,160.23,160.2,0.8202518]
[1724661405125,7.49799531,160.24,160.2,0.8202518]
[1724661405919,1.25729531,160.24,160.2,0.8202518]
[1724661406240,36.15867533,160.23,160.2,0.8202518]
[1724661406414,6.2406,160.24,160.2,0.8202518]
[1724661406607,371.37479283,160.26,160.2,0.8202518]
[1724661406806,1.25729531,160.25,160.2,0.8202518]
[1724661409434,7.49749531,160.25,160.2,0.8202518]
[1724661409735,365.13469283,160.26,160.2,0.8202518]
[1724661410036,6.241,160.23,160.2,0.8202518]
[1724661410249,1.25729531,160.22,160.2,0.8202518]
[1724661410413,366.39198814,160.22,160.2,0.8202518]
[1724661411041,1.25729531,160.21,160.2,0.8202518]
[1724661411534,371.37609283,160.22,160.2,0.8202518]
[1724661412534,365.13469283,160.22,160.2,0.8202518]
[1724661415366,1.25729531,160.21,160.2,0.8202518]
[1724661415537,365.13469283,160.22,160.2,0.8202518]
[1724661419736,6.2399,160.26,160.2,0.8202518]
[1724661420133,365.13469283,160.3,160.21,24.41248535]
[1724661420335,371.37329283,160.3,160.21,24.41248535]
[1724661420742,31.17497064,160.29,160.21,23.1643]
[1724661420917,6.2395,160.27,160.21,23.1643]
[1724661421114,1.25729531,160.28,160.21,23.1643]
[1724661422133,1.25729531,160.29,160.21,23.1643]
[1724661422542,371.37329283,160.3,160.22,1.2480614]
[1724661422846,365.13469283,160.29,160.23,1.24803275]
[1724661423051,365.13469283,160.29,160.22,20.0]
[1724661423052,365.13469283,160.29,160.24,1.24793515]
[1724661423356,365.13469283,160.29,160.22,49.91767533]
[1724661423357,365.13469283,160.29,160.23,45.0]
[1724661423565,365.13469283,160.34,160.25,21.9913]
[1724661423854,6.2371,160.33,160.26,20.0]
[1724661424037,1.25729531,160.32,160.26,20.0]
[1724661424246,6.2383,160.3,160.25,21.9913]
[1724661424559,1.25729531,160.29,160.25,21.9913]
[1724661425758,1.25729531,160.29,160.2,0.8202518]
[1724661425759,1.25729531,160.29,160.21,21.2232]
[1724661425931,1.25729531,160.29,160.22,20.0]
[1724661426423,6.24,160.26,160.2,0.8202518]
[1724661426630,390.3,160.25,160.2,0.8202518]
[1724661430235,1.25729531,160.24,160.2,0.8202518]
[1724661431342,390.3,160.25,160.2,0.8202518]
[1724661431653,390.3,160.26,160.2,0.8202518]
[1724661435928,390.3,160.26,160.2,20.8202518]
[1724661437652,1.25729531,160.25,160.2,20.8202518]
[1724661437856,1.25729531,160.25,160.2,0.8202518]
[1724661438747,6.2407,160.24,160.2,0.8202518]
[1724661438943,1.25729531,160.23,160.2,0.8202518]
[1724661440057,36.15837533,160.24,160.2,0.8202518]
[1724661440649,1.25729531,160.23,160.2,0.8202518]
[1724661440967,6.2407,160.24,160.2,0.8202518]
[1724661442240,7.49749531,160.25,160.2,0.8202518]
[1724661442575,396.5397,160.27,160.2,0.8202518]
[1724661442880,396.5397,160.27,160.21,1.56220055]
[1724661443059,390.3,160.27,160.21,1.24820143]
[1724661443245,390.3,160.27,160.22,1.56212757]
[1724661443447,390.3,160.27,160.21,1.24820143]
[1724661443744,6.2391,160.28,160.22,1.56212505]
[1724661443941,6.2391,160.28,160.21,1.24820143]
[1724661444169,6.2391,160.28,160.22,1.56214226]
[1724661444477,6.2391,160.28,160.21,1.24820143]
[1724661444774,6.2391,160.28,160.22,1.56211816]
[1724661445075,6.2391,160.28,160.21,1.24820143]
[1724661445277,6.2391,160.28,160.22,1.56212636]
[1724661445452,6.2391,160.28,160.21,1.24820143]
[1724661445661,6.2391,160.28,160.22,1.56212624]
[1724661445850,1.25729531,160.27,160.2,20.8202518]
[1724661446078,1.25729531,160.27,160.21,1.56215884]
[1724661446373,1.25729531,160.27,160.22,1.56215884]
[1724661446548,1.25729531,160.27,160.2,0.8202518]
[1724661446752,6.2391,160.28,160.21,2.81181417]
[1724661446953,6.2391,160.28,160.22,1.56211898]
[1724661447277,6.2391,160.28,160.2,0.8202518]
[1724661447467,6.2391,160.28,160.21,2.81182482]
[1724661447673,6.2391,160.28,160.22,1.56212518]
[1724661447853,6.2391,160.28,160.2,22.06839583]
[1724661448069,6.2391,160.28,160.21,2.81182523]
[1724661448246,7.49639531,160.28,160.22,1.56212485]
[1724661448449,7.49639531,160.28,160.2,20.8202518]
[1724661448648,7.49639531,160.28,160.21,1.56215865]
[1724661448951,7.49639531,160.28,160.22,1.56215865]
[1724661449162,7.49639531,160.28,160.2,20.8202518]
[1724661449362,7.49639531,160.28,160.21,2.81187228]
[1724661449653,397.79639531,160.28,160.22,1.56215127]
[1724661449966,397.79639531,160.28,160.23,1.56215127]
[1724661449967,390.3,160.28,160.23,1.56215127]
[1724661450279,390.3,160.28,160.2,2.06837955]
[1724661450482,390.3,160.28,160.21,2.81176265]
[1724661450778,390.3,160.28,160.23,22.4266]
[1724661450960,390.3,160.28,160.24,24.05962422]
[1724661451160,390.3,160.28,160.25,2.81176265]
[1724661451377,390.3,160.28,160.26,1.56209036]
[1724661451585,390.3,160.28,160.24,21.24786157]
[1724661451876,390.3,160.28,160.25,2.81118575]
[1724661452077,390.3,160.28,160.26,2.80955873]
[1724661452378,390.3,160.28,160.26,1.2478364]
[1724661452682,390.3,160.28,160.24,20.0]
[1724661452851,390.3,160.28,160.25,2.8111014]
[1724661453059,390.3,160.28,160.26,1.561723]
[1724661453273,390.3,160.28,160.24,20.0]
[1724661453460,390.3,160.28,160.23,22.4266]
[1724661453775,390.3,160.28,160.24,1.56189099]
[1724661454017,390.3,160.28,160.23,22.4266]
[1724661454168,390.3,160.28,160.24,1.56185503]
[1724661454366,390.3,160.28,160.23,22.4266]
[1724661454679,390.3,160.28,160.24,1.56185629]
[1724661454857,390.3,160.28,160.25,1.56185629]
[1724661455079,390.3,160.28,160.23,22.4266]
[1724661455254,390.3,160.28,160.24,1.5618566]
[1724661455462,6.2383,160.3,160.23,22.4266]
[1724661455661,7.49559531,160.3,160.23,22.4266]
[1724661455861,7.49559531,160.3,160.24,1.56188799]
[1724661456160,7.49559531,160.3,160.23,22.4266]
[1724661456382,7.49559531,160.3,160.24,1.56188767]
[1724661456568,7.49559531,160.3,160.23,22.4266]
[1724661456776,7.49559531,160.3,160.24,1.56188761]
[1724661456956,7.49559531,160.3,160.23,22.4266]
[1724661457172,7.49559531,160.3,160.24,1.56188793]
[1724661457368,7.49559531,160.3,160.23,22.4266]
[1724661457704,7.49559531,160.3,160.24,1.5618556]
[1724661457991,7.49559531,160.3,160.23,22.4266]
[1724661458156,7.49559531,160.3,160.24,1.56185591]
[1724661458355,7.49559531,160.3,160.23,22.4266]
[1724661458659,7.49559531,160.3,160.24,1.5618556]
[1724661458878,7.49559531,160.3,160.23,22.4266]
[1724661459087,1.25729531,160.29,160.23,22.4266]
[1724661459402,1.25729531,160.29,160.24,1.56185603]
[1724661459589,1.25729531,160.29,160.23,22.4266]
[1724661459785,7.49559531,160.3,160.24,1.56186548]
[1724661459980,7.49559531,160.3,160.23,22.4266]
[1724661459981,7.49559531,160.3,160.25,1.56186548]
[1724661460179,7.49559531,160.3,160.23,22.4266]
[1724661460382,7.49559531,160.3,160.24,1.56182384]
[1724661460586,396.5379,160.31,160.25,1.56182384]
[1724661460786,1.25729531,160.3,160.23,22.4266]
[1724661460978,1.25729531,160.3,160.24,2.81122444]
[1724661461179,390.3,160.31,160.25,2.80966698]
[1724661461381,390.3,160.32,160.26,1.56172545]
[1724661461584,390.3,160.32,160.24,11.97509443]
[1724661461790,390.3,160.32,160.25,1.56172482]